Cogmind - Beta 16.1 @@@ ROGUE MODE // 2026.03.07 @ 19:40:01 Player: +Jones Result: Destroyed by 9P-LOA(R) with Subdweller Beam Cannon Performance ------------- Evolutions (0) 0 Regions Visited (2) 400 Robots Destroyed (38) 190 Value Destroyed (852) 852 Prototype IDs (4) 80 Alien Tech Used (0) 0 Bonus (0) 0 TOTAL SCORE: 1522 Bonus ------- None Cogmind --------- Core Integrity 0/250 Matter 147/300 Energy 72/100 System Corruption 0% Temperature Cool (9) Movement Treading (160) Location -10/Subcaves Parts ------- > --- POWER (1) -------- (None) > --- PROPULSION (2) --- Light Treads Light Treads > --- UTILITY (2) ------ Large Storage Unit Seismic Detector > --- WEAPON (2) ------- Subdweller Machine Gun Barrage Gun > --- INVENTORY (15) --- High-capacity Storage Unit Large Matter Pod (150) Improved Terrain Scanner Seismic Detector Backup Plating I Scrap Shield Assault Rifle Battle Rifle Subdweller Machine Gun Grenade Launcher Subdweller Shrapnel Launcher Mining Laser Makeshift Spear Shrapnel Trap Peak State ------------ > --- POWER ------------ Ion Engine > --- PROPULSION ------- Light Treads Light Treads > --- UTILITY ---------- Large Storage Unit Seismic Detector > --- WEAPON ----------- Assault Rifle Makeshift Spear > --- INVENTORY -------- Light Treads Light Treads High-capacity Storage Unit Large Matter Pod Improved Terrain Scanner Seismic Detector Backup Plating I Hardened Light Armor Plating Spread Laser Spread Laser Assault Rifle Barrage Gun Grenade Launcher Subdweller Shrapnel Launcher Mining Laser [Rating: 12] Favorites ----------- Power Ion Engine Engine Ion Engine Propulsion Light Treads Treads Light Treads Utility Large Storage Unit Device Seismic Detector Storage Large Storage Unit Protection Hardened Light Armor Plating Weapon Assault Rifle Energy Gun Particle Gun Ballistic Gun Assault Rifle Launcher Grenade Launcher Special Weapon Mining Laser Impact Weapon Hammer Piercing Weapon Makeshift Spear Build | -11 -10 -10 ------- Run | Yrd Mat Sub Slots Evolved . | . . . Power . | . . . Propulsion . | . . . Utility . | . . . Weapon . | . . . Parts Attached 30 | 9 13 8 Power 3 | 2 1 . Engine 3 | 2 1 . Core . | . . . Reactor . | . . . Propulsion 4 | 2 . 2 Treads 4 | 2 . 2 Leg . | . . . Wheel . | . . . Hover . | . . . Flight . | . . . Utility 6 | 2 4 . Device 2 | 1 1 . Storage 2 | 1 1 . Processor . | . . . Hackware . | . . . Protection 2 | . 2 . Artifact . | . . . Weapon 17 | 3 8 6 Energy Gun 4 | 1 2 1 Energy Cannon . | . . . Ballistic Gun 8 | 2 3 3 Ballistic Cannon . | . . . Launcher 2 | . 1 1 Special Weapon 1 | . 1 . Impact Weapon 1 | . 1 . Slashing Weapon . | . . . Piercing Weapon 1 | . . 1 Special Melee Weapon . | . . . Unidentified Prototypes . | . . . Parts Lost 4 | . . 4 Power 1 | . . 1 Propulsion 2 | . . 2 Utility 1 | . . 1 Weapon . | . . . Highest Loss Streak 2 | . . 2 To Critical Strikes . | . . . Average Backups 12 | 1 12 13 Power . | . . . Propulsion 1 | . 1 1 Utility 5 | . 5 5 Weapon 5 | 1 5 6 Tool/Special . | . . . Unused Backups 8 | . 1 7 Power . | . . . Propulsion . | . . . Utility 6 | . 1 5 Weapon 2 | . . 2 Tool/Special . | . . . Average Slot Usage (%) 99 | . 99 99 Engine 13 | . 14 13 Treads 27 | . 27 28 Device 8 | . 5 10 Storage 14 | . 14 14 Protection 5 | . 8 3 Energy Gun 3 | . 6 . Ballistic Gun 20 | . 19 20 Impact Weapon 1 | . . 2 Piercing Weapon 2 | . . 4 Peak Build Rating 12 | 7 11 12 Average Rating 9 | 5 9 10 On Entrance 5 | . 7 9 Avg Prop Armor Cover (%) . | . . . Naked Turns . | . . . Heaviest Build 36 | 14 35 36 Greatest Support 40 | 40 40 40 Greatest Overweight (x) 2 | 2 . . Average Overweight (x) . | . . . Largest Inventory Capacity 15 | 8 15 15 Average Capacity 14 | 7 14 15 Most Carried 15 | 4 15 15 Average Carried 12 | 1 12 14 Final Capacity 15 | 8 15 15 Final Carried 15 | 4 15 15 Class Distribution -------------------- 88% | Mutant 11% | Scavenger-Mutant Dominant Class ---------------- Mutant | -10/Materials Mutant | -10/Subcaves Resources | -11 -10 -10 ----------- Run | Yrd Mat Sub Matter Collected 1500 | 339 575 586 Remotely . | . . . Salvage Created 1096 | 185 656 255 Parts 82 | 13 44 25 Haulers Intercepted 2 | . 2 . Recyclers Shooed . | . . . Parts Field Recycled . | . . . Retrieved Matter . | . . . Parts Self-Destructed . | . . . Prevented . | . . . Parts Restored . | . . . Kills | -11 -10 -10 ------- Run | Yrd Mat Sub Combat Hostiles Destroyed 24 | . 16 8 Guns 19 | . 14 5 AOE 5 | . 2 3 Classes Destroyed 9 | 2 6 1 Worker 1 | . 1 . Builder 1 | . 1 . Tunneler 6 | 6 . . Hauler 2 | . 2 . Recycler 1 | 1 . . Watcher 3 | . 3 . Swarmer 6 | . 6 . Grunt 10 | . 10 . Subdweller 8 | . . 8 Best Kill Streak 3 | 2 3 2 Combat Bots Only 3 | . 3 2 Max Kills in Single Turn 2 | 2 2 2 Gunslinging . | . . . Exploded 2 | . 2 2 Melee . | . . . Uniques/NPCs Destroyed . | . . . Combat | -11 -10 -10 -------- Run | Yrd Mat Sub Hostile Shots Fired 100 | . 58 42 Missed 30 | . 16 14 Hits 70 | . 42 28 Projectile 70 | . 42 28 AOE 3 | . . 3 Critical Strikes 1 | . 1 . Damage Taken 1250 | . 446 804 Core 262 | . 82 180 Absorbed by Shields . | . . . Core Remaining (%) 100 | 100 . . Volleys Fired 93 | 14 54 25 Largest 2 | 2 2 2 Hottest 130 | 60 130 80 Shots Fired 175 | 27 99 49 Gun 163 | 27 89 47 Cannon . | . . . Launcher 4 | . 2 2 Special 8 | . 8 . Kinetic 125 | 21 63 41 Thermal 47 | 6 34 7 Explosive 3 | . 2 1 Electromagnetic . | . . . Robot Hit Streak 10 | 8 10 9 Robot Miss Streak 2 | 2 2 2 Penetration Max . | . . . Secondary Targets . | . . . Shots Hit Robots 123 | 19 65 39 Core Hits 59 | 8 36 15 Critical Kills . | . . . Critical Parts Destroyed . | . . . Critical Strikes . | . . . Melee Attacks 15 | . 1 14 Impact 13 | . 1 12 Slashing . | . . . Piercing 2 | . . 2 Sneak Attacks . | . . . Combat Hostiles . | . . . Follow-up Attacks . | . . . Damage Inflicted 2067 | 231 954 882 Guns 1655 | 231 827 597 Cannons . | . . . Explosions 412 | . 127 285 Melee . | . . . Ramming . | . . . Kinetic 1393 | 188 542 663 Thermal 441 | 43 285 113 Explosive 233 | . 127 106 Electromagnetic . | . . . Impact . | . . . Slashing . | . . . Piercing . | . . . Highest Corruption . | . . . Average Corruption . | . . . Corruption Purged . | . . . Corruption Blocked . | . . . Overload Shots . | . . . Overflow Damage 19 | . . 19 Projectiles . | . . . Explosions 19 | . . 19 Melee . | . . . Knockbacks . | . . . Impact . | . . . Kinetic . | . . . Secondary . | . . . Self-Inflicted Damage 21 | . . 21 Shots 1 | . . 1 Rammed . | . . . Targets Rammed . | . . . Kicked . | . . . Crushed . | . . . Highest Temperature 156 | 20 156 . Average Temperature 34 | 17 34 . Received Heat Transfer 261 | . 213 48 Siege Activations . | . . . Martial Activations . | . . . Shielding Activations . | . . . Robots Disrupted . | . . . Combat Hostiles . | . . . Robots Corrupted . | . . . Combat Hostiles . | . . . Parts Fried . | . . . Impact Corruptions . | . . . Robots Melted . | . . . Combat Hostiles . | . . . Parts Melted 2 | . 2 . Heat Transferred 906 | 100 656 150 Parts Sabotaged . | . . . Parts Stolen . | . . . Parts Stripped . | . . . Power Chain Reactions . | . . . Alert | -11 -10 -10 ------- Run | Yrd Mat Sub Maximum Alert Level . | . . . Low Security (%) 100 | 100 100 . Level 1 . | . . . Level 2 . | . . . Level 3 . | . . . Level 4 . | . . . Level 5 . | . . . High Security . | . . . Max Security . | . . . Peak Influence 136 | 10 136 . Initial . | . . . Average 59 | 2 66 . Influence Increases 647 | 35 612 . Destroy 0b10 Robot/C 320 | . 320 . Destroy 0b10 Robot/NC 70 | 35 35 . Destroy Leader 70 | . 70 . Successful Hack 52 | . 52 . Select Force Hacks 60 | . 60 . Destroy Structure 30 | . 30 . Lose Combat Pursuer 45 | . 45 . Influence Decreases 647 | 35 540 72 Entered New Map 36 | . . 36 Time Decay 611 | 35 540 36 Squads Dispatched 3 | . 3 . Investigation 3 | . 3 . Extermination . | . . . Reinforcement . | . . . Assault . | . . . Garrison . | . . . Intercept . | . . . Searches Triggered . | . . . Construction Impeded . | . . . Haulers Reinforced . | . . . Active Scanning Responses . | . . . Cargo Convoy Interrupts . | . . . Stealth | -11 -10 -10 --------- Run | Yrd Mat Sub Distress Signals 1 | . 1 . Communications Jammed . | . . . Distress Signals . | . . . Times Spotted 30 | . 21 9 Peak Tracking Total 7 | . 7 3 Tactical Retreats 1 | . 1 . Traps | -11 -10 -10 ------- Run | Yrd Mat Sub Traps Triggered 3 | . 2 1 Indirectly . | . . . Trap Hack Attempts . | . . . Triggered . | . . . Disarmed . | . . . Reprogrammed . | . . . Reused . | . . . Traps Extracted . | . . . Installed . | . . . Triggered . | . . . Most Traps Carried 1 | . . 1 Machines | -11 -10 -10 ---------- Run | Yrd Mat Sub Machines Disabled . | . . . Max in Single Turn . | . . . Machines Repaired . | . . . Machines Dismantled . | . . . Machines Sabotaged . | . . . Overloaded Fab Kills . | . . . Hacking | -11 -10 -10 --------- Run | Yrd Mat Sub Machines Accessed 9 | . 9 . Terminals 6 | . 6 . Fabricators . | . . . Repair Stations 1 | . 1 . Recycling Units 2 | . 2 . Scanalyzers . | . . . Garrison Access . | . . . Total Hacks 29 | . 29 . Successful 20 | . 20 . Failed 9 | . 9 . Catastrophic . | . . . Database Lockouts . | . . . Manual 23 | . 23 . Terminals 24 | . 24 . Fabricators . | . . . Repair Stations 1 | . 1 . Recycling Units 4 | . 4 . Scanalyzers . | . . . Garrison Access . | . . . Terminal Hacks 8 | . 8 . Robot Analysis 3 | . 3 . Prototype ID Bank 4 | . 4 . Locate Traps 1 | . 1 . Fabricator Hacks . | . . . Repair Station Hacks 1 | . 1 . Refit 1 | . 1 . Recycling Unit Hacks 1 | . 1 . Retrieve Components 1 | . 1 . Scanalyzer . | . . . Garrison Access Hacks . | . . . Unauthorized Hacks 10 | . 10 . Terminals 8 | . 8 . Botnet 2 | . 2 . Operators 1 | . 1 . Skim 5 | . 5 . Fabricators . | . . . Repair Stations . | . . . Recycling Units 2 | . 2 . Tunnel 2 | . 2 . Scanalyzers . | . . . Garrison Access . | . . . Data Cores Recovered . | . . . Used . | . . . Hacking Detections 5 | . 5 . Full Trace Events . | . . . Feedback Events . | . . . Feedback Blocked . | . . . Robot Schematics Acquired . | . . . Robots Built . | . . . Authchips . | . . . Time . | . . . Total Robot Build Rating . | . . . Part Schematics Acquired . | . . . Parts Built . | . . . Authchips . | . . . Time . | . . . Total Part Build Rating . | . . . Part Studies Acquired . | . . . Parts Repaired . | . . . Time . | . . . Parts Recycled . | . . . Recycled Matter . | . . . Retrieved Matter . | . . . Retrieved Components 1 | . 1 . Parts Scanalyzed . | . . . Part Schematics Acquired . | . . . Parts Damaged . | . . . Bothacking | -11 -10 -10 ------------ Run | Yrd Mat Sub Used RIF Installer . | . . . Robots Hacked . | . . . Non-combat . | . . . Combat . | . . . Robot Hacks Applied . | . . . Relay Couplers Released . | . . . Fabnet Peak Effective % . | . . . Robots Rewired . | . . . Allies Hacked . | . . . Hacks Repelled . | . . . Allies | -11 -10 -10 -------- Run | Yrd Mat Sub Total Allies . | . . . Largest Group . | . . . Highest-Rated Group . | . . . Highest-Rated Ally . | . . . Total Orders . | . . . Ally Attacks . | . . . Total Damage . | . . . Kills . | . . . Allies Corrupted . | . . . Allies Melted . | . . . Intel | -11 -10 -10 ------- Run | Yrd Mat Sub Active Infowar (turns) 2152 | 86 685 1381 Seismic 2152 | 86 685 1381 Robot Analysis Total 3 | . 3 . Derelict Logs Recovered . | . . . Drone Launches . | . . . Drone Recoveries . | . . . Exploration | -11 -10 -10 ------------- Run | Yrd Mat Sub Turns Passed 3754 | 222 1690 1842 Spaces Moved 1774 | 64 753 957 Core 8 | 8 . . Treads 1766 | 56 753 957 Legs . | . . . Wheels . | . . . Hover . | . . . Flight . | . . . Fastest Speed 50 | 50 160 160 Average Speed 159 | 151 160 160 Slowest Speed 160 | 160 160 160 Overloaded Moves . | . . . Propulsion Burnouts . | . . . Robots Hopped . | . . . Potential Cave-ins . | . . . Cave-ins Triggered . | . . . Exploration Rate (%) 53 | 4 96 60 Regions Visited 2 Branch Regions 1 Pre-discovered Areas 3 | . 3 . Known Exits Taken 1 | . 1 . Unknown Exits Taken 1 | 1 . . Scrap Searched 5 | . . 5 Spaces Dug 9 | . 8 1 Terrain Destroyed 38 | . 28 10 Melee 2 | . 1 1 Projectile 8 | . 8 . AOE 28 | . 19 9 Terrain Rammed . | . . . Walls Destroyed . | . . . Machines Disabled . | . . . Actions | -11 -10 -10 --------- Run | Yrd Mat Sub Total 2464 | 159 1114 1191 Wait 479 | 68 258 153 Move 1772 | 63 752 957 Hop . | . . . Pick Up 23 | 4 12 7 Fast Attach 15 | 7 4 4 Attach 4 | . 1 3 Detach 2 | . 2 . Swap 44 | 2 23 19 Drop 17 | 1 7 9 Fire 93 | 14 54 25 Melee 15 | . 1 14 Ram . | . . . Kick . | . . . Crush . | . . . Escape Stasis . | . . . Rewire . | . . . Trap . | . . . Miscellaneous . | . . . Route ------- -11/Scrapyard -10/Materials (discovered 6 exits: *Mat x3 / [*Min x2] / *Sub) -10/Subcaves (discovered 2 exits: [*Mat] / [*Rec]) History --------- Turn | Location | Event 7 | -11/Scrapyard | Discovered new exit (range 15) 223 | -11/Scrapyard | Entered Materials 320 | -10/Materials | Build established: Mutant 628 | -10/Materials | Discovered new exit (range 16) 719 | -10/Materials | Discovered new exit (range 14) 721 | -10/Materials | Discovered new exit (range 9) 1026 | -10/Materials | Discovered new exit (range 10) 1184 | -10/Materials | Discovered new exit (range 11) 1413 | -10/Materials | Identified exit to Materials 1493 | -10/Materials | Learned 2 Mines zone layouts 1562 | -10/Materials | Loaded intel: 22 trap records 1671 | -10/Materials | Learned Materials trap positions 1711 | -10/Materials | Learned Storage trap positions 1783 | -10/Materials | Identified exit to Subcaves 1835 | -10/Materials | Learned 4 Recycling zone layouts 1913 | -10/Materials | Entered Subcaves 2371 | -10/Subcaves | Shifting Twisted Machinery released Sub. Beam Cannon 2955 | -10/Subcaves | Discovered new exit (range 15) 3140 | -10/Subcaves | Core integrity fell below 50% 3251 | -10/Subcaves | Core integrity fell below 20% 3444 | -10/Subcaves | Discovered new exit (range 9) 3663 | -10/Subcaves | Build established: Scavenger-Mutant 3743 | -10/Subcaves | A Subdweller sparked back to life 3755 | -10/Subcaves | Destroyed by 9P-LOA(R) with Subdweller Beam Cannon Last Messages --------------- 03270_ Subatomizers dissect the Sub. Power Source. 03444_ EXIT=FOUND 03518_ E8-L3U(u) deconstructs Twisted Machinery. 03534_ Subatomizers dissect the Sub. Monowheel. 03558_ E3-JML(R) destroyed. 03563_ Dropped Assault Rifle. 03563_ Acquired Sub. Machine Gun. 03565_ Acquired 38 matter. 03680_ Ion Engine destroyed. 03682_ K4-KY4(R) destroyed. 03694_ Acquired 17 matter. 03699_ Acquired Battle Rifle. 03703_ Acquired Scrap Shield. 03743_ TM-B26(R) creaks and sparks as it begins to move. 03748_ TM-B26(R) destroyed. 03748_ NE-F5I(R) destroyed. Map ----- +----------------------------------------------------+ | | | | | | | | | | | ?????????????????????????????????????????????????? | | ?????????????????????????????????????????????????? | | ?????????????????????????????????????????????????? | | ?????????????????????????????????????????????????? | | ?????????????????????????????????????????????????? | | ?????????????????????????????????????????????????? | | ?????????????????????????????????????????????????? | | ?????????????????????????????????????????????????? | | ?????????????????????????????????????????????????? | | ?????????????????????????????????????????????????? | | ?????????????????????????????????????????????????? | | ?????????????????????????????????????????????????? | | ##???????????????????????????????????????????????? | | ###?????????????????????????????????????????????? | | ####????###??#####????????????????????????????? | | # ###### #### ########?????????????????????? | | ## ##??###?????#?????????? | | ! ! ## ## ?????????? | | " """" # # ????????? | | ## ##"""####### ????????? | | ###### #????# @ #???????????? | | ##??? " ##; #???????????????? | | ###??? #### #???????????????? | | ####??" #??# #??????????????? | | # ##?#" ## ##?? #??????????????? | | #??# #########???? #??????????????? | | #??###???????????? ## #?????????????? | | # ##?????????????????#?# ;????????????? | | # #????????????????????# ;#???????????? | | ####?????????????????????# #???????????? | | ?????????????????????????? ] ????????????? | | ??????????????????????????# R =% ????????????? | | ??????????????????????????? * ??????????????? | | ??????????????????????????? % ????????????????? | | ??????????????????????????? ???????????????????? | | ?????????????????????????????????????????????????? | | ?????????????????????????????????????????????????? | | ?????????????????????????????????????????????????? | | ?????????????????????????????????????????????????? | | ?????????????????????????????????????????????????? | | ?????????????????????????????????????????????????? | | ?????????????????????????????????????????????????? | | ?????????????????????????????????????????????????? | | ?????????????????????????????????????????????????? | | ?????????????????????????????????????????????????? | +----------------------------------------------------+ Best States ------------- Heat Dissipation 25 Energy Generation 10 Energy Capacity 250 Matter Stores 300 Matter Capacity 300 Sight Range 16 Terrain Scan Density 10 Armor Coverage 150 Evasion (%) 40 Recoil Reduction 2 Item Schematics ----------------- None Robot Schematics ------------------ None Fabricated ------------ Nothing Repaired ---------- Nothing Studied --------- None Alien Tech Used ----------------- None Achievements -------------- None Challenges ------------ None Game ------ Seed TrapDisruptionStripper Manual? 0 Play Time 00:19:43 Cumulative 441.2 hours Start 2026.03.07 @ 19:20:12 End 2026.03.07 @ 19:40:01 Sessions 1 Manual Loads 0 Difficulty Rogue Special Mode None Game No. 348 Rogue 348 Adventurer 0 Explorer 0 Win Type - Total 6 Types 4/0/0/0/0/0/0/2/0/0 Lore% 70 Gallery% 71 Achievement% 58 Wizard Run 0 Options --------- Layout 1 ASCII 0 Keyboard 0 Movement Mouse Keybinds 0 Fullscreen 1 Font 32/SmallcapsGlow Map View 50x35 Zoom Use 0% Tactical HUD 1 Map Filters NONE Filters NONE Steam 1 RUN: 91fae55f-3d48-4e07-9502-71063a0e29cd